bitfinex/quotes_ETHUSD_20251110
["timestamp","ask_amount","ask_price","bid_price","bid_amount"]
[1762741854467,0.002,3630.9,3630.6,2.75436087]
[1762741854672,0.002,3630.9,3630.4,0.192]
[1762741854962,0.002,3630.9,3630.4,2.75451012]
[1762741855327,0.002,3630.9,3630.5,2.75443006]
[1762741855526,0.002,3630.9,3630.1,0.1863]
[1762741855727,2.75426366,3630.8,3630.1,2.94097157]
[1762741855947,0.1896,3630.9,3630.2,2.75466527]
[1762741856234,0.61931036,3630.9,3630.4,2.75450199]
[1762741856434,0.002,3630.9,3630.4,2.75450199]
[1762741856636,0.002,3630.9,3630.4,0.4988]
[1762741856864,2.75427484,3630.8,3630.1,2.94098487]
[1762741857170,2.75427484,3630.8,3630.1,2.94099621]
[1762741857870,0.1896,3630.9,3630.1,2.75469621]
[1762741857871,0.002,3630.3,3630.1,2.75469621]
[1762741858370,0.002,3630.3,3630.2,3.25346916]
[1762741858671,0.002,3630.3,3630.2,3.73206916]
[1762741859636,0.002,3630.3,3630.2,3.75961585]
[1762741860566,0.002,3630.3,3630.2,3.73206916]
[1762741860768,0.002,3630.3,3630.2,3.75961585]
[1762741860973,0.002,3630.3,3630.2,4.44545791]
[1762741862079,0.002,3630.3,3630.2,1.19198875]
[1762741862279,0.002,3630.3,3630.2,3.73206916]
[1762741862690,0.002,3630.3,3630.2,3.75961585]
[1762741862854,0.002,3630.9,3630.8,2.75421394]
[1762741863058,0.002,3630.9,3630.8,5.87423196]
[1762741863260,0.002,3630.9,3630.8,10.24857409]
[1762741863463,0.002,3631.7,3631.2,4.41912655]
[1762741863787,0.002,3631.7,3631.2,5.27023574]
[1762741863985,0.002,3631.7,3631.2,5.90663574]
[1762741864189,0.002,3631.7,3631.2,7.27476071]
[1762741864574,0.002,3631.7,3631.2,6.90225152]
[1762741864969,0.002,3631.7,3631.2,7.27476071]
[1762741865302,0.002,3631.7,3631.2,1.84672497]
[1762741865486,0.002,3631.7,3631.2,3.23251055]
[1762741865686,0.002,3631.7,3631.2,3.75884965]
[1762741865997,0.002,3631.7,3631.2,3.73131055]
[1762741866176,0.002,3631.7,3631.2,3.75884965]
[1762741866376,0.002,3631.7,3631.2,4.78603158]
[1762741868979,0.002,3631.7,3631.1,3.848]
[1762741869299,0.002,3631.7,3631.1,6.60193749]
[1762741869704,0.002,3631.7,3631.2,2.75391055]
[1762741870264,0.002,3631.7,3631.2,3.848]
[1762741870465,0.0907,3631.3,3631.2,3.848]
[1762741870683,0.002,3631.3,3631.2,3.848]
[1762741870894,0.002,3631.3,3631.2,6.60191055]
[1762741871168,0.002,3631.3,3631.2,7.08051055]
[1762741871792,0.002,3631.3,3631.2,9.24701724]
[1762741872069,0.002,3631.3,3631.2,3.848]
[1762741872271,0.002,3631.3,3631.2,6.60191055]
[1762741872665,0.002,3631.3,3631.2,7.08051055]
[1762741873584,0.002,3631.3,3631.2,6.60191055]
[1762741874101,0.002,3631.3,3631.2,7.08051055]
[1762741874803,0.002,3631.3,3631.2,4.3266]
[1762741875014,0.002,3631.3,3631.2,7.08051055]
[1762741875218,0.002,3631.3,3631.2,3.848]
[1762741875422,0.0907,3631.3,3631.2,3.848]
[1762741876588,0.002,3631.3,3631.2,6.60191055]
[1762741877788,0.0907,3631.3,3631.2,3.848]
[1762741878800,0.0907,3631.3,3631.2,6.60191055]
[1762741878801,0.002,3631.3,3631.2,6.60191055]
[1762741879331,0.002,3631.3,3631.2,3.848]
[1762741879695,0.002,3631.3,3631.2,6.60191055]
[1762741880027,0.002,3631.3,3631.2,7.08051055]
[1762741881002,0.002,3631.3,3631.2,7.45301974]
[1762741881216,0.002,3631.3,3631.2,7.08051055]
[1762741882127,0.4814,3631.3,3631.2,3.848]
[1762741882431,0.002,3631.3,3631.2,6.60191055]
[1762741882731,0.002,3631.3,3631.2,7.08051055]
[1762741882930,0.002,3631.3,3631.2,7.57931055]
[1762741883443,0.002,3631.3,3631.2,6.60191055]
[1762741883614,0.0907,3631.3,3631.2,3.848]
[1762741883798,0.002,3631.3,3631.2,6.60191055]
[1762741884627,0.5497,3631.3,3631.1,3.848]
[1762741884814,0.5497,3631.3,3630.9,0.001]
[1762741884815,2.85896224,3631.0,3630.9,0.001]
[1762741884999,4.49390306,3631.0,3630.9,0.001]
[1762741885753,1.73984082,3631.0,3630.9,0.001]
[1762741885919,0.81757223,3631.0,3630.9,0.001]
[1762741886437,0.36207223,3631.0,3630.9,0.001]
[1762741886652,0.81757223,3631.0,3630.9,0.001]
[1762741886817,0.36207223,3631.0,3630.9,0.001]
[1762741887000,3.57163447,3631.0,3630.9,0.001]
[1762741887200,0.81757223,3631.0,3630.9,0.001]
[1762741887651,0.36207223,3631.0,3630.9,0.001]
[1762741888420,0.39477223,3631.0,3630.9,0.001]
[1762741888706,0.95517223,3631.0,3630.9,0.001]
[1762741889135,0.49967223,3631.0,3630.9,0.001]
[1762741889523,0.95517223,3631.0,3630.9,0.001]
[1762741890947,4.08035065,3631.0,3630.9,3.849]
[1762741891248,4.96894647,3631.0,3630.9,0.001]
[1762741891544,4.01407766,3630.6,3630.5,0.001]
[1762741891722,2.75466916,3630.2,3630.1,0.001]
[1762741891919,3.11004139,3630.2,3630.1,0.001]
[1762741892245,3.56544139,3630.2,3630.1,0.001]
[1762741893372,5.23065739,3630.2,3630.1,0.001]
[1762741893646,2.75558004,3629.0,3628.9,0.001]
[1762741893820,3.10665227,3629.0,3628.9,0.001]
[1762741894147,3.56205227,3629.0,3628.9,0.001]
[1762741896948,0.80647223,3629.0,3628.9,0.001]
[1762741897158,3.56205227,3629.0,3628.9,0.001]
[1762741897361,4.21323084,3629.0,3628.9,0.001]
[1762741904275,3.75783084,3629.0,3628.9,0.001]
[1762741905391,1.0022508,3629.0,3628.9,0.001]
[1762741905591,0.35107223,3629.0,3628.9,0.001]
[1762741905796,0.25717223,3629.0,3628.9,0.001]
[1762741906000,2.75513349,3629.6,3628.9,3.70305598]
[1762741906291,0.1376,3629.0,3628.9,3.70305598]
[1762741906646,0.1943,3629.8,3628.9,0.9474]
[1762741906647,2.75500583,3629.8,3628.9,0.9474]
[1762741906852,0.25405194,3629.7,3629.4,0.4756]
[1762741907057,0.25405194,3629.6,3629.4,3.23085516]
[1762741907283,1.259712,3630.0,3629.4,3.42575516]
[1762741907444,3.00902236,3629.9,3629.5,0.4756]
[1762741907776,0.2541133,3629.8,3629.5,0.4756]
[1762741907977,0.2541133,3629.7,3629.5,0.4756]
[1762741908282,0.25416415,3629.6,3629.5,0.4756]
[1762741908580,0.25416415,3630.0,3629.4,0.1949]
[1762741908737,0.25416921,3629.9,3629.8,2.75497272]
[1762741908947,2.94863736,3630.7,3629.9,2.75484625]
[1762741909139,2.75444153,3630.5,3629.8,0.4954]
[1762741909361,0.25421263,3630.4,3629.4,0.1949]
[1762741909563,0.002,3630.1,3629.4,3.42676012]
[1762741909876,0.002,3630.1,3629.8,2.75491383]
[1762741910278,0.002,3630.1,3629.5,0.4766]
[1762741910447,0.002,3630.1,3629.7,2.75504207]
[1762741910871,0.002,3630.1,3630.0,0.4954]
[1762741911056,0.002,3630.1,3630.0,3.25022093]
[1762741911266,0.002,3630.1,3630.0,4.37775507]
[1762741911468,0.002,3630.1,3630.0,4.40530327]
[1762741912179,0.002,3630.1,3630.0,4.78325907]
[1762741912806,0.002,3630.1,3630.0,6.07051927]
[1762741912964,0.002,3630.1,3630.0,6.04297107]
[1762741913299,0.002,3630.5,3630.4,4.4197334]
[1762741913491,0.002,3630.5,3630.4,5.82926761]
[1762741913663,0.002,3630.5,3630.4,6.33341278]
[1762741913868,0.002,3630.5,3630.4,6.30586761]
[1762741916706,0.002,3630.5,3630.4,6.44346761]
[1762741917811,0.002,3630.5,3630.4,10.29146761]
[1762741918577,0.002,3630.5,3630.4,10.6639768]
[1762741920986,0.002,3630.5,3630.4,10.29146761]
[1762741922505,0.002,3630.5,3630.4,10.6639768]
[1762741923202,0.002,3630.5,3630.4,10.29146761]
[1762741924700,0.002,3630.5,3630.4,10.6952268]
[1762741928906,0.002,3631.3,3631.2,2.75391055]
[1762741929135,0.002,3631.3,3631.2,15.86021337]
[1762741929321,1e-08,3631.7,3631.6,4.87862322]
[1762741929637,0.002,3632.3,3631.8,0.405504]
[1762741929943,0.002,3632.3,3632.0,4.87831996]
[1762741930339,0.002,3632.3,3632.0,5.36691996]
[1762741930864,0.002,3632.3,3632.0,1.719512]
[1762741931023,0.4717,3632.1,3631.7,6.5974802]
[1762741931229,0.4717,3632.1,3631.8,2.75341255]
[1762741931454,0.4717,3632.1,3631.7,3.844]
[1762741931455,0.4708,3632.1,3631.7,3.844]
[1762741931631,0.1108,3631.8,3631.7,3.844]
[1762741931814,0.2914,3631.8,3630.6,0.4886]
[1762741932015,0.0018,3631.5,3630.7,2.7542898]
[1762741932217,2.75549667,3631.5,3630.5,2.75437604]
[1762741932545,0.4688,3631.4,3630.5,1.259712]
[1762741932846,0.4688,3631.4,3630.8,2.75419212]
[1762741933046,0.4688,3631.4,3630.7,2.75428534]
[1762741933651,0.2928,3630.8,3630.0,0.001]
[1762741933949,0.0126,3630.7,3630.2,2.75464618]
[1762741934134,0.0126,3630.7,3630.2,3.0302108]
[1762741934135,0.4814,3630.7,3630.2,3.0302108]
[1762741934338,0.4814,3630.7,3630.2,0.27556462]
[1762741934536,0.4814,3630.7,3630.0,2.75575774]
[1762741934850,0.4814,3630.7,3630.0,0.001]
[1762741935162,0.4814,3630.7,3630.2,2.75465853]
[1762741935379,2.7540177,3631.1,3630.4,2.75451427]
[1762741935682,2.7540177,3631.1,3630.4,2.75449989]
[1762741935683,0.25596617,3631.0,3630.4,2.75449989]
[1762741935861,0.25596617,3630.9,3630.3,2.75458605]
[1762741936179,0.25596617,3630.8,3630.4,2.75448699]
[1762741936483,0.25596617,3630.7,3630.3,2.75452827]
[1762741936636,0.043,3630.9,3630.3,2.7545752]
[1762741936835,0.25611703,3630.8,3630.3,2.7545752]
[1762741937181,0.25611703,3630.7,3630.4,2.75450878]
[1762741937361,0.25611703,3630.6,3630.2,3.09707154]
[1762741937559,0.4688,3631.7,3630.5,0.4598]
[1762741937865,0.25616285,3631.6,3630.1,0.1804]
[1762741938077,0.25616285,3631.5,3630.2,0.405504]
[1762741938285,0.25616285,3631.4,3630.3,0.02754593]
[1762741938463,0.25616285,3631.3,3630.4,1.259712]
[1762741938778,0.4688,3631.6,3630.9,2.75412194]
[1762741938779,0.25616285,3631.2,3630.9,2.75412194]
[1762741938983,0.25616285,3631.1,3631.0,2.75400942]
[1762741939475,0.25616285,3631.1,3631.0,3.21380942]
[1762741939683,0.25616285,3631.1,3631.0,3.70240942]
[1762741939970,0.25616285,3631.1,3630.9,2.89172259]
[1762741940132,0.25616285,3631.0,3630.9,2.89172259]
[1762741940583,0.25616285,3631.0,3630.9,2.89173809]
[1762741940728,0.37916285,3631.0,3630.9,0.1376]
[1762741941061,0.37916285,3631.0,3630.7,2.7542898]
[1762741941261,0.25616285,3630.9,3630.8,2.75416294]
[1762741941460,0.25616285,3630.9,3630.7,2.7542667]
[1762741941761,0.25616285,3630.8,3630.6,2.89194348]
[1762741941929,0.25616285,3630.7,3630.6,2.89194348]
[1762741942360,0.51606285,3630.7,3630.4,2.75446676]
[1762741942531,0.0047,3630.5,3630.3,0.1376]
[1762741942730,0.51346285,3630.4,3630.0,0.001]
[1762741942953,0.4693,3630.1,3630.0,0.001]
[1762741943232,0.25616285,3630.1,3630.0,3.32067381]
[1762741943431,0.5165865,3630.1,3630.0,0.001]
[1762741944040,0.9832865,3630.1,3630.0,0.001]
[1762741944244,0.5165865,3630.1,3630.0,2.75582093]
[1762741944548,0.2566865,3630.1,3630.0,2.75582093]
[1762741944862,0.2566865,3630.1,3630.0,3.22692093]
[1762741945241,0.2566865,3630.1,3630.0,2.75582093]
[1762741945766,0.25655771,3630.1,3630.0,0.001]
[1762741945931,0.25655771,3630.1,3630.0,2.75582093]
[1762741947171,0.1376,3630.8,3630.1,2.75474504]
[1762741947478,0.002,3631.7,3631.1,2.75396939]
[1762741947685,2.75376725,3631.4,3630.6,2.75432813]
[1762741947975,0.25652152,3631.3,3630.9,2.75413228]
[1762741948187,0.25652152,3631.2,3631.1,2.75398639]
[1762741948339,0.25652152,3631.2,3630.5,0.4957]
[1762741948539,0.25652152,3631.1,3631.0,2.75398977]
[1762741950038,0.25652152,3631.1,3631.0,3.22508977]
[1762741950264,0.25652152,3631.1,3631.0,2.75406224]
[1762741951299,0.25652152,3631.1,3631.0,3.22516224]
[1762741952207,0.25652152,3631.1,3631.0,7.71666956]
[1762741952992,0.25652152,3631.1,3631.0,8.61787356]
[1762741953292,0.002,3631.7,3631.6,2.75360722]
[1762741953466,0.25846201,3631.7,3631.6,2.75360722]
[1762741954115,0.25846201,3631.7,3631.1,0.4957]
[1762741954116,0.50056201,3631.7,3631.5,2.75362955]
[1762741954392,0.25646201,3631.6,3631.5,2.75362955]
[1762741954796,0.25646201,3631.6,3631.5,3.22472955]
[1762741954962,0.25646201,3631.6,3631.5,2.75362955]
[1762741955172,0.49856201,3631.6,3631.5,2.75368305]
[1762741955583,0.25646201,3631.6,3631.5,2.75368305]
[1762741956093,0.25646201,3631.6,3631.5,3.8569963]
[1762741956297,0.25646201,3631.6,3631.5,8.1966963]
[1762741956595,0.002,3631.7,3631.6,2.75360722]
[1762741956760,0.25841719,3631.7,3631.6,3.22470722]
[1762741957363,0.25841719,3631.7,3631.6,3.36230722]
[1762741958176,0.25841719,3631.7,3631.6,4.47109757]
[1762741958798,0.25841719,3631.7,3631.6,3.99999757]
[1762741959004,0.25841719,3631.7,3631.6,2.89120722]
[1762741959500,0.50051719,3631.7,3631.6,2.89120722]
[1762741960106,0.50041924,3631.7,3631.6,2.89120722]
[1762741960317,0.5005514,3631.7,3631.6,2.89120722]
[1762741961315,0.5005514,3631.7,3631.6,6.73520722]
[1762741962759,0.5005514,3631.7,3631.6,3.844]
[1762741962897,0.5005514,3631.7,3631.6,6.59760722]
[1762741963094,0.2584514,3631.7,3631.6,7.06870722]
[1762741963409,0.002,3631.7,3631.6,8.71271087]
[1762741963949,0.002,3631.7,3631.6,5.48800365]
[1762741964104,0.73812935,3631.7,3631.6,3.845]
[1762741964288,0.73812935,3631.7,3631.6,6.59860722]
[1762741964488,0.4816,3631.7,3631.6,6.59860722]
[1762741965028,0.002,3631.7,3631.6,6.59860722]
[1762741966804,0.002,3631.7,3631.6,7.06970722]
[1762741967010,0.002,3631.7,3631.6,7.59471219]
[1762741967531,0.0987,3631.7,3631.6,7.59471219]
[1762741969065,0.97630461,3631.7,3631.6,0.001]
[1762741969770,3.72983601,3631.7,3631.6,0.001]
[1762741969973,0.97630461,3631.7,3631.6,0.001]
[1762741972059,0.39620461,3631.7,3631.6,3.22850722]
[1762741972285,0.39620461,3631.7,3631.6,4.4170117]
[1762741972286,0.002,3631.7,3631.6,4.4170117]
[1762741972586,0.002,3631.7,3631.6,4.5546117]
[1762741974171,0.4915,3631.7,3631.6,3.6022117]
[1762741974376,0.002,3631.7,3631.6,3.6022117]
[1762741974772,0.002,3631.7,3631.6,4.0531117]
[1762741975290,0.002,3631.7,3631.6,4.5487117]
[1762741977589,0.002,3631.7,3631.6,8.3927117]
[1762741978290,0.002,3631.7,3631.6,7.8971117]
[1762741979795,0.002,3631.7,3631.6,8.3927117]
[1762741980335,0.002,3631.7,3631.6,9.37902494]
[1762741980493,0.002,3631.7,3631.6,10.0579277]
[1762741980862,0.002,3631.7,3631.6,16.5279277]
[1762741981260,0.002,3631.7,3631.6,15.8947277]
[1762741981576,0.002,3631.7,3631.6,16.3903277]
[1762741981904,0.002,3632.1,3632.0,4.41851996]
[1762741982106,0.002,3632.1,3632.0,8.80154219]
[1762741982274,0.002,3632.1,3632.0,9.26960916]
[1762741983470,1e-08,3632.3,3632.2,3.79145635]
[1762741983780,1e-08,3632.3,3632.2,7.4290057]
[1762741984110,1e-08,3632.3,3632.2,7.9246057]
[1762741985290,1e-08,3632.3,3632.2,9.40446595]
[1762741987620,1e-08,3632.3,3632.2,13.24846595]
[1762741988316,1e-08,3632.3,3632.2,11.7686057]
[1762741988889,1e-08,3632.3,3632.2,12.34885666]
[1762741989087,1e-08,3632.3,3632.2,11.3631017]
[1762741989320,0.002,3633.4,3633.0,2.7525461]
[1762741989516,0.002,3633.4,3633.0,9.70097156]
[1762741989821,0.002,3633.4,3633.0,11.4287581]
[1762741990604,0.002,3633.4,3633.0,10.4822581]
[1762741991223,0.002,3633.4,3633.0,10.9331581]
[1762741991523,0.002,3633.4,3633.0,12.8343523]
[1762741992229,0.0919,3633.1,3633.0,12.3834523]
[1762741992635,0.002,3633.1,3633.0,12.3834523]
[1762741993032,0.0919,3633.1,3633.0,12.3834523]
[1762741993209,0.002,3633.1,3633.0,12.8343523]
[1762741993538,0.002,3633.1,3633.0,13.3299523]
[1762741994934,0.002,3633.1,3633.0,12.8343523]
[1762741995533,0.002,3633.1,3633.0,12.3834523]
[1762741995735,0.0919,3633.1,3633.0,12.3834523]
[1762741996235,0.5698,3633.1,3633.0,10.6198581]
[1762741996437,0.0919,3633.1,3633.0,6.6076]
[1762741996736,0.0919,3633.1,3633.0,9.2225461]
[1762741997313,0.002,3633.4,3633.3,2.75231882]
[1762741997513,0.002,3633.4,3633.3,15.11258985]
[1762741997719,0.002,3633.4,3633.3,16.09788791]
[1762741998445,0.002,3633.4,3633.3,13.14261039]
[1762741998642,0.002,3633.4,3633.3,12.15731233]
[1762741998839,0.002,3633.4,3633.3,11.94887251]
[1762741999237,0.002,3633.4,3633.3,11.00237251]
[1762741999540,0.0889,3633.4,3633.3,7.85003081]
[1762742000374,0.0889,3633.4,3633.3,2.75231882]
[1762742000541,0.5668,3633.4,3633.2,2.75238426]
[1762742000745,0.002,3633.4,3633.2,2.75234406]
[1762742001046,0.0869,3633.3,3633.2,2.75239458]
[1762742001246,0.002,3633.4,3633.3,3.20321882]
[1762742001557,0.0869,3633.3,3632.9,1.259712]
[1762742001856,0.0861,3633.0,3632.9,1.259712]
[1762742002043,0.0861,3633.0,3632.9,4.01233387]
[1762742002821,0.0861,3633.0,3632.9,2.75262187]
[1762742003074,0.002,3633.4,3633.3,2.75231882]
[1762742003240,0.74027888,3633.4,3633.2,2.75239101]
[1762742003426,0.4838,3633.4,3633.2,2.75239101]
[1762742003624,0.5648,3633.3,3632.9,3.85]
[1762742003826,3.00892612,3633.2,3632.9,3.85]
[1762742004065,0.276,3633.0,3632.9,3.85]
[1762742004346,0.53247958,3633.0,3632.9,3.85]
[1762742004543,1.00837958,3633.0,3632.6,3.85]
[1762742004718,1.00837958,3633.0,3632.2,3.85]
[1762742004719,0.25647958,3632.9,3632.2,3.85]
[1762742004946,0.4569,3632.2,3632.0,2.75327905]
[1762742005143,0.4569,3632.2,3631.8,2.75438352]
[1762742005348,1.01020827,3632.2,3631.8,0.001]
[1762742005548,0.25650827,3632.2,3632.0,2.75328343]
[1762742005832,0.1096,3632.7,3632.1,2.78176044]
[1762742006043,0.25648165,3632.6,3632.5,2.75292498]
[1762742006438,0.36338165,3632.6,3632.5,2.75292498]
[1762742006863,0.81938165,3632.6,3632.5,2.75292498]
[1762742007262,0.4569,3632.6,3632.5,2.75292498]
[1762742007457,0.002,3633.4,3632.5,0.4899]
[1762742007648,0.71609503,3633.3,3633.0,2.75251976]
[1762742007852,0.25659503,3633.2,3632.2,0.405504]
[1762742008162,0.25660642,3633.1,3632.9,2.75258304]
[1762742008378,0.81950642,3633.0,3632.9,2.75258304]
[1762742008775,0.81950642,3633.0,3632.8,2.75265659]
[1762742008947,0.44570642,3632.9,3632.8,2.75265659]
[1762742009281,0.55610642,3632.9,3632.8,2.75265659]
[1762742009682,0.25660642,3632.9,3632.8,3.24255659]
[1762742009888,0.25660642,3632.9,3632.8,3.84209594]
[1762742010091,0.002,3633.4,3633.3,2.75231882]
[1762742010418,0.25885471,3633.4,3633.3,2.75231882]
[1762742010591,0.82175471,3633.4,3633.3,2.75231882]
[1762742010894,0.36575471,3633.4,3633.3,2.75231882]
[1762742011062,0.002,3633.4,3633.3,2.75231882]
[1762742011475,0.1124,3633.4,3633.3,2.75231882]
[1762742012187,0.5649,3633.4,3633.3,2.75231882]
[1762742012486,0.82182105,3633.4,3633.3,2.75231882]
[1762742012657,0.82182105,3633.4,3632.8,3.85]
[1762742012858,0.1124,3633.4,3632.9,0.48352981]
[1762742013171,0.1124,3633.4,3633.3,2.75231882]
[1762742013377,0.36933707,3633.4,3633.3,2.75231882]
[1762742013683,0.82183707,3633.4,3632.8,3.85]
[1762742013890,0.4569,3632.9,3632.8,6.60269727]
[1762742015009,0.2923,3633.3,3633.2,2.75239458]
[1762742015199,0.54918237,3633.3,3633.1,2.75245803]
[1762742015408,0.2725,3633.0,3632.8,3.85]
[1762742015708,0.0027,3632.9,3632.8,3.85]
[1762742016009,0.0027,3632.9,3632.8,6.60264897]
[1762742016510,0.002,3633.4,3632.8,4.3409]
[1762742016732,0.25681842,3633.3,3633.2,2.75237136]
[1762742017316,0.81971842,3633.3,3633.1,2.7524204]
[1762742017526,0.25681842,3633.2,3633.1,2.7524204]
[1762742017821,0.81971842,3633.2,3633.1,2.7524204]
[1762742018520,0.81971842,3633.2,3632.8,0.1386]
[1762742018685,0.646,3632.9,3632.8,0.001]
[1762742019178,0.7556,3632.9,3632.8,0.001]
[1762742020382,0.4569,3632.9,3632.8,2.75369764]
[1762742020597,0.002,3633.4,3633.0,2.7525461]
[1762742020598,0.1891,3633.3,3633.0,2.7525461]
[1762742020802,0.1891,3633.3,3633.2,2.75239458]
[1762742020982,1.01223495,3633.3,3633.2,2.75239458]
[1762742021402,1.01223495,3633.3,3632.8,0.1386]
[1762742021630,0.71623495,3633.2,3632.9,2.75262187]
[1762742021831,0.25673495,3633.1,3633.0,2.7525461]
[1762742022329,0.36363495,3633.1,3633.0,2.7525461]
[1762742022551,0.36363495,3633.1,3632.8,0.1386]
[1762742022552,0.81963495,3633.1,3632.8,0.1386]
[1762742022724,0.81963495,3633.1,3632.8,0.001]
[1762742022725,0.0046,3632.9,3632.8,0.001]
[1762742022896,3.61105682,3632.9,3632.8,0.001]
[1762742023094,4.24741012,3632.9,3632.8,0.001]
[1762742024828,1.49478825,3632.9,3632.8,0.001]
[1762742025028,0.85843495,3632.9,3632.8,0.001]
[1762742025620,3.61105682,3632.9,3632.8,0.001]
[1762742026307,0.85843495,3632.9,3632.8,0.001]
[1762742026503,3.61105682,3632.9,3632.8,0.001]
[1762742027347,2.75292498,3632.5,3632.4,0.001]
[1762742027642,3.66263604,3632.5,3632.4,0.001]
[1762742027814,4.12313604,3632.5,3632.4,0.001]
[1762742033549,1.37021106,3632.5,3632.4,0.001]
[1762742033955,4.12313604,3632.5,3632.4,0.001]
[1762742034261,1.37021106,3632.5,3632.4,0.001]
[1762742034763,4.12313604,3632.5,3632.4,0.001]
[1762742034932,3.57255993,3632.5,3632.4,0.001]
[1762742036435,0.35913495,3632.5,3632.4,0.001]
[1762742037442,0.25673495,3632.5,3632.4,0.4576]
[1762742038000,0.25673495,3632.5,3632.4,0.001]
[1762742038153,0.25673495,3632.5,3632.4,7.54740077]
[1762742038337,0.002,3632.8,3632.4,7.54740077]
[1762742038338,0.1376,3632.6,3632.5,2.75292498]
[1762742038541,0.002,3632.8,3632.5,2.75292498]
[1762742038741,0.002,3632.8,3632.6,2.75284919]
[1762742038742,0.25615926,3632.7,3632.6,2.75284919]
[1762742038966,0.1396,3632.8,3632.5,0.4566]
[1762742039170,0.1396,3632.8,3632.7,2.75277341]
[1762742039479,0.39576364,3632.8,3632.6,2.75282684]
[1762742039674,0.25616364,3632.7,3632.6,2.75282684]
[1762742039976,0.25616364,3632.7,3632.5,2.75291174]
[1762742040176,0.1396,3632.8,3632.7,2.75277341]
[1762742040350,0.3957833,3632.8,3632.7,3.20937341]
[1762742040676,0.3957833,3632.8,3632.7,3.69617341]
[1762742040852,0.25818608,3632.8,3632.7,3.69617341]
[1762742041057,0.25818608,3632.8,3632.4,0.001]
[1762742041058,0.37037812,3632.8,3632.4,0.001]
[1762742041398,0.37037812,3632.8,3632.7,2.75277341]
[1762742041399,0.002,3632.8,3632.7,2.75277341]
[1762742041560,0.002,3632.8,3632.7,0.4566]
[1762742041739,0.25824273,3632.8,3632.7,0.4566]
[1762742041939,0.4812,3632.8,3632.4,2.75399371]
[1762742042274,0.002,3632.8,3632.7,3.20937341]
[1762742042462,0.002,3632.8,3632.7,3.23690114]
[1762742042668,0.25829869,3632.8,3632.7,0.4566]
[1762742042867,0.25829869,3632.8,3632.7,3.20937341]
[1762742043464,0.25829869,3632.8,3632.7,0.4566]
[1762742043684,0.37049869,3632.8,3632.7,3.85]
[1762742043990,0.37049869,3632.8,3632.7,4.3066]
[1762742043991,0.25829869,3632.8,3632.7,4.3066]
[1762742044321,0.25829869,3632.8,3632.7,7.54617341]
[1762742044521,0.37049869,3632.8,3632.4,0.001]
[1762742044821,0.25629869,3632.7,3632.4,0.001]
[1762742044977,0.46,3632.5,3632.4,0.001]
[1762742045180,0.71629869,3632.5,3632.4,0.001]
[1762742045492,0.25629869,3632.5,3632.4,3.69740077]
[1762742045875,0.25629869,3632.5,3632.4,0.9444]
[1762742046075,0.25629869,3632.5,3632.4,0.4576]
[1762742047021,0.36849869,3632.5,3632.4,0.001]
[1762742047322,0.82779869,3632.5,3632.4,0.001]
[1762742047477,0.36849869,3632.5,3632.4,0.001]
[1762742048510,0.82779869,3632.5,3632.4,0.001]
[1762742048712,3.93897891,3632.5,3632.4,0.001]
[1762742048914,0.82779869,3632.5,3632.4,0.001]
[1762742049129,3.58072367,3632.5,3632.4,0.001]
[1762742050392,0.82779869,3632.5,3632.4,0.001]
[1762742050723,3.58072367,3632.5,3632.4,0.001]
[1762742051281,0.25629869,3632.5,3632.4,0.001]
[1762742051830,0.37189869,3632.5,3632.4,0.001]
[1762742054125,0.25629869,3632.5,3632.4,0.001]
[1762742054514,0.25629869,3632.5,3632.4,0.4576]
[1762742055624,0.25629869,3632.5,3632.4,0.001]
[1762742055824,0.36849869,3632.5,3632.4,0.001]
[1762742056124,0.25629869,3632.5,3632.4,0.4576]
[1762742056324,0.39389869,3632.5,3632.4,0.4576]
[1762742057426,0.39389869,3632.5,3632.4,0.001]
[1762742057615,0.50609869,3632.5,3632.4,0.001]
[1762742057831,0.50609869,3632.5,3632.4,2.75400077]
[1762742058123,0.39389869,3632.5,3632.4,7.06060077]
[1762742059131,0.39389869,3632.5,3632.4,3.21060077]
[1762742059295,0.50609869,3632.5,3632.4,0.001]
[1762742059498,0.96539869,3632.5,3632.4,0.001]
[1762742059701,1.33741492,3632.5,3632.4,0.001]
[1762742059925,3.71832367,3632.5,3632.4,0.001]
[1762742061749,4.97803567,3632.5,3632.4,0.001]
[1762742062256,5.38353967,3632.5,3632.4,0.001]
[1762742063824,3.15865635,3632.2,3632.1,0.001]
[1762742064031,5.98805367,3632.2,3632.1,0.001]
[1762742064228,6.44735367,3632.2,3632.1,0.001]
[1762742065624,4.41844416,3632.1,3632.0,0.001]
[1762742065953,5.24994285,3632.1,3632.0,0.001]
[1762742067939,5.24935756,3632.1,3632.0,0.001]
[1762742068141,5.24935756,3632.1,3631.4,0.001]
[1762742068142,3.15918705,3631.5,3631.4,0.001]
[1762742068312,3.08579645,3631.5,3631.4,0.001]
[1762742068512,3.56459645,3631.5,3631.4,0.001]
[1762742068935,3.08579645,3631.5,3631.4,0.001]
[1762742069311,3.84358044,3631.5,3631.4,0.001]
[1762742069510,4.32238044,3631.5,3631.4,0.001]
[1762742070043,5.58209244,3631.5,3631.4,0.001]
[1762742070244,5.10329244,3631.5,3631.4,0.001]
[1762742070447,0.2557134,3631.5,3631.4,0.9272]
[1762742070613,0.2557134,3631.5,3631.4,3.68095888]
[1762742070813,0.002,3632.8,3631.4,0.9272]
[1762742071150,0.25550889,3632.7,3631.9,2.75337941]
[1762742071319,2.75301743,3632.4,3631.5,0.49113683]
[1762742071651,0.34181115,3632.7,3631.5,0.49113683]
[1762742071652,3.00858632,3632.3,3631.5,3.21725975]
[1762742071946,0.82471115,3632.7,3631.7,2.75351017]
[1762742071947,0.25550889,3632.2,3631.7,2.75351017]
[1762742072125,0.25550889,3632.1,3631.8,3.21705321]
[1762742072326,1.259712,3632.6,3631.8,3.21705321]
[1762742072327,0.25550889,3632.0,3631.8,3.21705321]